bitfinex-derivatives/quotes_BTCF0:USTF0_20250901
["timestamp","ask_amount","ask_price","bid_price","bid_amount"]
[1756726325283,0.4694329,108720.0,108710.0,1.42655199]
[1756726327086,0.4694329,108720.0,108710.0,1.18516047]
[1756726327387,0.4694329,108720.0,108710.0,1.42655199]
[1756726328188,0.4694329,108720.0,108710.0,1.18516047]
[1756726328388,0.4694329,108720.0,108710.0,1.44655199]
[1756726330786,0.1086329,108720.0,108710.0,1.44655199]
[1756726331789,0.1086329,108720.0,108710.0,1.53853909]
[1756726332388,0.1086329,108720.0,108710.0,1.44655199]
[1756726332586,0.4694329,108720.0,108710.0,1.44655199]
[1756726332777,0.1086329,108720.0,108710.0,1.44655199]
[1756726332977,0.46967691,108720.0,108710.0,0.86440047]
[1756726333181,0.46967691,108720.0,108710.0,0.59304199]
[1756726333380,0.46967691,108720.0,108710.0,0.59759199]
[1756726333588,0.46967691,108720.0,108710.0,0.60043199]
[1756726335293,0.46967691,108720.0,108710.0,0.26043199]
[1756726335492,0.46967691,108720.0,108710.0,0.57043199]
[1756726337897,0.96106843,108720.0,108710.0,0.01194]
[1756726338194,0.96106843,108720.0,108700.0,0.01194]
[1756726338195,0.08213,108710.0,108700.0,0.01194]
[1756726338394,0.44293,108710.0,108700.0,0.01194]
[1756726338892,0.44293,108710.0,108700.0,0.35194]
[1756726339390,0.44493,108710.0,108700.0,0.35194]
[1756726339792,0.44493,108710.0,108700.0,0.01194]
[1756726339989,0.44493,108710.0,108700.0,0.01906752]
[1756726340692,0.44693,108710.0,108700.0,0.01906752]
[1756726340894,0.44693,108710.0,108700.0,0.01167752]
[1756726341095,0.44693,108710.0,108700.0,0.01622752]
[1756726341993,0.44693,108710.0,108700.0,0.01167752]
[1756726342198,0.44693,108710.0,108700.0,0.00712752]
[1756726342400,0.44693,108710.0,108690.0,1.17420883]
[1756726342698,0.05028,108700.0,108690.0,1.48420883]
[1756726345201,0.05028,108700.0,108690.0,1.4913286]
[1756726346202,0.09651,108700.0,108690.0,1.5003886]
[1756726350296,0.09651,108700.0,108690.0,0.6553486]
[1756726350498,0.09651,108700.0,108690.0,1.19304496]
[1756726350704,0.45731,108700.0,108690.0,0.04800496]
[1756726350906,0.70731,108700.0,108690.0,0.03800496]
[1756726351402,0.0367,108690.0,108680.0,0.07789212]
[1756726351608,0.44373,108690.0,108680.0,0.14194]
[1756726352303,0.44373,108690.0,108680.0,0.14929186]
[1756726353808,0.44373,108690.0,108680.0,0.15029186]
[1756726354003,0.44333,108690.0,108680.0,0.15029186]
[1756726354411,0.44333,108690.0,108680.0,0.14290186]
[1756726354906,0.68472152,108690.0,108680.0,0.14290186]
[1756726357496,0.93472152,108690.0,108680.0,0.14290186]
[1756726357702,0.68472152,108690.0,108680.0,0.00835186]
[1756726357903,1.52980152,108690.0,108680.0,0.00835186]
[1756726358105,0.44333,108690.0,108680.0,0.00835186]
[1756726358410,1.52980152,108690.0,108680.0,0.00835186]
[1756726358610,1.77980152,108690.0,108680.0,0.00835186]
[1756726359203,0.93472152,108690.0,108680.0,0.00835186]
[1756726359404,1.77980152,108690.0,108680.0,0.00835186]
[1756726359813,1.80003122,108690.0,108680.0,0.00835186]
[1756726362113,0.95495122,108690.0,108680.0,0.00835186]
[1756726362313,1.80003122,108690.0,108680.0,0.01873186]
[1756726363210,1.80003122,108690.0,108680.0,0.01883186]
[1756726363415,1.80003122,108690.0,108680.0,0.01364186]
[1756726364108,1.80003122,108690.0,108680.0,0.00845186]
[1756726364917,0.95495122,108690.0,108680.0,0.00845186]
[1756726365110,1.80003122,108690.0,108680.0,0.01364186]
[1756726365415,1.80003122,108690.0,108680.0,0.00845186]
[1756726365609,1.80003122,108690.0,108680.0,0.37845186]
[1756726366218,0.95495122,108690.0,108680.0,0.38883186]
[1756726366412,0.4635597,108690.0,108680.0,0.63346338]
[1756726366615,0.4635597,108690.0,108680.0,0.97547738]
[1756726366807,0.3810297,108690.0,108680.0,0.97547738]
[1756726367009,0.3810297,108690.0,108680.0,1.82055738]
[1756726367217,0.3810297,108690.0,108680.0,2.12790102]
[1756726367417,0.3810297,108690.0,108680.0,1.8865095]
[1756726369016,0.0202297,108690.0,108680.0,2.2473095]
[1756726369914,0.0202297,108690.0,108680.0,2.00591798]
[1756726370115,0.1030097,108690.0,108680.0,0.45802398]
[1756726370420,0.4638097,108690.0,108680.0,0.39207186]
[1756726370812,0.0434597,108690.0,108680.0,0.97547838]
[1756726371018,0.0202297,108690.0,108680.0,1.33627838]
[1756726373319,0.0681497,108690.0,108680.0,1.33627838]
[1756726373616,0.1030097,108690.0,108680.0,0.97547838]
[1756726373817,0.1030097,108690.0,108680.0,1.82047838]
[1756726374027,0.1030097,108690.0,108680.0,2.18127838]
[1756726375026,0.4638097,108690.0,108680.0,0.37845186]
[1756726375327,0.95520122,108690.0,108680.0,0.12845186]
[1756726375622,0.95520122,108690.0,108680.0,0.00845186]
[1756726375818,0.7138097,108690.0,108680.0,0.33207186]
[1756726376125,0.4638097,108690.0,108680.0,0.57346338]
[1756726376628,0.4638097,108690.0,108680.0,0.02207186]
[1756726377125,0.4638097,108690.0,108680.0,0.40207186]
[1756726377327,0.4638097,108690.0,108680.0,0.02207186]
[1756726377518,0.4638097,108690.0,108680.0,0.36207186]
[1756726380529,0.09712,108700.0,108690.0,0.01362]
[1756726380724,0.09712,108700.0,108690.0,0.59501152]
[1756726381224,0.08278,108700.0,108690.0,0.35362]
[1756726381528,0.08278,108700.0,108690.0,0.59501152]
[1756726383116,0.09712,108700.0,108690.0,0.59501152]
[1756726383315,0.45792,108700.0,108690.0,0.35362]
[1756726383527,0.09712,108700.0,108690.0,0.01038]
[1756726383726,0.09712,108700.0,108690.0,0.00519]
[1756726383926,0.09712,108700.0,108690.0,0.35038]
[1756726384122,0.09712,108700.0,108690.0,0.35362]
[1756726384519,0.03486,108690.0,108680.0,0.33645674]
[1756726384729,0.68497152,108690.0,108680.0,0.0810631]
[1756726384924,0.93497152,108690.0,108670.0,0.06595212]
[1756726385232,0.08278,108670.0,108660.0,1.02475999]
[1756726385423,0.44358,108670.0,108660.0,1.36475999]
[1756726385923,0.44358,108670.0,108660.0,0.44504787]
[1756726386330,0.44358,108670.0,108660.0,0.42662184]
[1756726386535,0.44358,108670.0,108660.0,0.66801336]
[1756726386931,0.44358,108670.0,108660.0,0.67564805]
[1756726388133,0.44358,108670.0,108660.0,0.43425653]
[1756726388433,0.44358,108670.0,108660.0,0.67564805]
[1756726389234,0.44358,108670.0,108660.0,0.43425653]
[1756726390832,0.44358,108670.0,108660.0,0.67564805]
[1756726391027,0.44358,108670.0,108660.0,0.43425653]
[1756726391428,0.68497152,108670.0,108660.0,0.43101653]
[1756726391629,0.68497152,108670.0,108660.0,0.07268184]
[1756726391833,0.65011152,108670.0,108650.0,0.87553358]
[1756726392033,0.44358,108660.0,108650.0,1.24623358]
[1756726392228,0.44358,108660.0,108650.0,1.4876251]
[1756726392939,0.44358,108660.0,108650.0,1.22752]
[1756726393130,0.44358,108660.0,108650.0,1.46891152]
[1756726393330,0.464295,108660.0,108650.0,1.46891152]
[1756726393634,0.464295,108660.0,108650.0,1.22752]
[1756726393838,0.464295,108660.0,108650.0,1.46891152]
[1756726394134,0.466295,108660.0,108650.0,1.46891152]
[1756726394330,0.466295,108660.0,108650.0,1.54438321]
[1756726394532,0.468295,108660.0,108650.0,0.69863171]
[1756726394733,0.468295,108660.0,108650.0,1.55203171]
[1756726395234,0.468295,108660.0,108650.0,1.55199171]
[1756726396047,0.468295,108660.0,108650.0,1.31060019]
[1756726396340,0.468295,108660.0,108650.0,0.69863171]
[1756726396539,0.468295,108660.0,108650.0,1.55187171]
[1756726396837,0.468295,108660.0,108650.0,0.45724019]
[1756726397044,0.95968652,108660.0,108650.0,0.07547169]
[1756726397246,0.95968652,108660.0,108640.0,0.00334]
[1756726397435,0.69931152,108650.0,108640.0,0.34404]
[1756726397636,0.69931152,108650.0,108640.0,0.3481823]
[1756726397944,0.45792,108650.0,108640.0,0.3481823]
[1756726398142,0.45792,108650.0,108640.0,0.3515223]
[1756726398333,0.45792,108650.0,108640.0,0.3428323]
[1756726398542,0.94931152,108650.0,108640.0,0.3428323]
[1756726398740,0.94931152,108650.0,108640.0,0.07857639]
[1756726399137,0.94931152,108650.0,108620.0,0.85324]
[1756726399138,0.91445152,108650.0,108620.0,0.85324]
[1756726399338,0.44545,108630.0,108620.0,0.40312405]
[1756726399538,0.68684152,108630.0,108620.0,0.40312405]
[1756726400044,0.44545,108630.0,108620.0,0.40312405]
[1756726400239,0.68684152,108630.0,108620.0,0.40312405]
[1756726400444,0.44545,108630.0,108620.0,0.45512405]
[1756726400647,0.40875,108630.0,108620.0,0.69651557]
[1756726400846,0.40875,108630.0,108620.0,0.69451557]
[1756726401046,0.40875,108630.0,108620.0,0.45312405]
[1756726401348,0.44545,108630.0,108620.0,0.69451557]
[1756726401554,0.44545,108630.0,108620.0,0.45312405]
[1756726401948,0.44545,108630.0,108620.0,0.69451557]
[1756726402449,0.44545,108630.0,108620.0,0.45312405]
[1756726402650,0.44545,108630.0,108620.0,0.69451557]
[1756726403050,0.44545,108630.0,108620.0,0.76983134]
[1756726403244,0.44545,108630.0,108620.0,0.52843982]
[1756726403443,0.40875,108630.0,108620.0,0.76983134]
[1756726403642,0.44545,108630.0,108620.0,0.76983134]
[1756726404044,0.44545,108630.0,108620.0,0.52843982]
[1756726404247,0.44545,108630.0,108620.0,0.76983134]
[1756726404648,0.44545,108630.0,108620.0,0.52843982]
[1756726405151,0.68684152,108630.0,108620.0,0.16843982]
[1756726405453,0.93684152,108630.0,108620.0,0.12420577]
[1756726405653,0.93684152,108630.0,108620.0,0.14271864]
[1756726405951,0.93684152,108630.0,108620.0,0.55932864]
[1756726406346,0.93684152,108630.0,108620.0,0.18711426]
[1756726407554,0.93684152,108630.0,108620.0,0.17932864]
[1756726407749,0.93684152,108630.0,108600.0,0.42854699]
[1756726407750,1.80796152,108630.0,108600.0,0.42854699]
[1756726407956,0.68678152,108620.0,108610.0,0.04864]
[1756726408155,0.82639911,108620.0,108610.0,0.22525]
[1756726408450,1.06779063,108620.0,108610.0,0.22525]
[1756726408642,0.82639911,108620.0,108610.0,0.40525]
[1756726408848,0.82639911,108620.0,108610.0,0.64664152]
[1756726409254,0.91846501,108620.0,108610.0,0.64664152]
[1756726409946,0.91846501,108620.0,108610.0,0.64764152]
[1756726410343,0.91846501,108620.0,108610.0,0.70764152]
[1756726411147,0.91846501,108620.0,108610.0,0.54107908]
[1756726411344,0.91846501,108620.0,108610.0,0.7824706]
[1756726412256,0.91846501,108620.0,108610.0,0.54107908]
[1756726412445,0.91846501,108620.0,108610.0,0.7824706]
[1756726413553,0.47307501,108620.0,108610.0,1.0324706]
[1756726414152,0.60237771,108640.0,108610.0,1.4487339]
[1756726414346,0.11282291,108640.0,108630.0,0.51184304]
[1756726414554,0.11282291,108640.0,108630.0,1.23264304]
[1756726414851,0.11282291,108640.0,108630.0,1.57469934]
[1756726415758,0.11282291,108640.0,108630.0,1.48264304]
[1756726417253,0.11682291,108640.0,108630.0,1.48264304]
[1756726417755,0.11482291,108640.0,108630.0,1.48264304]
[1756726417962,0.11282291,108640.0,108630.0,2.35216304]
[1756726418864,0.11282291,108640.0,108630.0,2.35316304]
[1756726419251,0.11282291,108640.0,108630.0,2.49445662]
[1756726419463,0.11282291,108640.0,108630.0,2.35316304]
[1756726419663,0.11282291,108640.0,108630.0,2.35264304]
[1756726420258,0.14952291,108640.0,108630.0,1.2914887]
[1756726420458,0.14952291,108640.0,108630.0,2.1602487]
[1756726420760,0.14952291,108640.0,108630.0,2.1592487]
[1756726420957,0.11282291,108640.0,108630.0,2.1602487]
[1756726421164,0.11282291,108640.0,108630.0,2.1602087]
[1756726421354,0.11282291,108640.0,108630.0,2.1592087]
[1756726421564,0.11282291,108640.0,108630.0,2.2512651]
[1756726421763,0.11282291,108640.0,108630.0,2.49265662]
[1756726423271,0.11282291,108640.0,108630.0,2.49209662]
[1756726423566,0.02077181,108640.0,108630.0,2.49209662]
[1756726423973,0.02077181,108640.0,108630.0,2.49309662]
[1756726424570,0.11281971,108640.0,108630.0,2.49309662]
[1756726424771,0.11281971,108640.0,108630.0,2.40092022]
[1756726425572,0.11281971,108640.0,108630.0,1.14215358]
[1756726425766,0.11281971,108640.0,108630.0,1.53488022]
[1756726425969,0.11281971,108640.0,108630.0,2.40364022]
[1756726426170,0.0920479,108640.0,108630.0,2.1622487]
[1756726426371,0.0920479,108640.0,108630.0,2.1602487]
[1756726426976,0.0920479,108640.0,108630.0,1.05009718]
[1756726427175,0.1287479,108640.0,108630.0,2.1599687]
[1756726427378,0.0920479,108640.0,108630.0,2.1599687]
[1756726427773,0.0920479,108640.0,108630.0,2.2520251]
[1756726428078,0.0920479,108640.0,108630.0,2.49341662]
[1756726428376,0.0920479,108640.0,108630.0,2.40136022]
[1756726428578,0.0920479,108640.0,108630.0,2.40036022]
[1756726428779,0.0920479,108640.0,108630.0,2.35112304]
[1756726429681,0.1280779,108640.0,108630.0,2.10144304]
[1756726429991,0.1760779,108640.0,108630.0,1.25774]
[1756726430279,0.4260779,108640.0,108630.0,1.49913152]
[1756726430483,0.7868779,108640.0,108630.0,1.54881553]
[1756726430880,0.7868779,108640.0,108630.0,0.43826401]
[1756726431077,0.7868779,108640.0,108630.0,1.30742401]
[1756726431280,0.7888779,108640.0,108630.0,1.13089528]
[1756726431676,0.80909165,108640.0,108630.0,1.08169127]
[1756726431875,0.81109165,108640.0,108630.0,1.08169127]
[1756726432378,0.81109165,108640.0,108630.0,0.24027401]
[1756726433083,0.81109165,108640.0,108630.0,0.25826401]
[1756726433473,0.45029165,108640.0,108630.0,0.63965553]
[1756726433671,0.14089165,108640.0,108630.0,1.24184705]
[1756726433881,0.11626165,108640.0,108630.0,1.24184705]
[1756726434084,0.11626165,108640.0,108630.0,1.01193584]
[1756726434582,0.16426165,108640.0,108630.0,0.70986]
[1756726434781,0.16426165,108640.0,108630.0,1.01193584]
[1756726434983,0.11626165,108640.0,108630.0,1.01193584]
[1756726435187,0.11426165,108640.0,108630.0,1.01193584]
[1756726435382,0.11226165,108640.0,108630.0,1.01193584]
[1756726438988,0.11226165,108640.0,108630.0,1.41994336]
[1756726439184,0.10534165,108640.0,108630.0,1.4720192]
[1756726439386,0.10534165,108640.0,108630.0,1.40606708]
[1756726439688,0.10534165,108640.0,108630.0,1.10399124]
[1756726440184,0.39683,108670.0,108640.0,0.0920409]
[1756726440387,0.4088,108670.0,108660.0,0.35135219]
[1756726440686,0.4088,108670.0,108660.0,0.70994985]
[1756726440883,0.44483,108670.0,108660.0,0.70994985]
[1756726441084,0.44483,108670.0,108660.0,0.71810451]
[1756726441285,0.44483,108670.0,108660.0,0.66882816]
[1756726441689,0.38121419,108680.0,108660.0,1.02962816]
[1756726441690,0.10444419,108680.0,108660.0,1.02962816]
[1756726441990,0.10444419,108680.0,108670.0,1.21767577]
[1756726442191,0.10444419,108680.0,108670.0,1.53767577]
[1756726442391,0.06841419,108680.0,108670.0,1.53767577]
[1756726442690,0.10444419,108680.0,108670.0,1.53767577]
[1756726442988,0.10644419,108680.0,108670.0,1.53767577]
[1756726443194,0.10644419,108680.0,108670.0,1.89847577]
[1756726443490,0.10644419,108680.0,108670.0,1.921606]
[1756726443878,0.10444419,108680.0,108670.0,1.921606]
[1756726444078,0.10444419,108680.0,108670.0,1.9873078]
[1756726444292,0.10444419,108680.0,108670.0,1.921606]
[1756726444483,0.02041419,108680.0,108670.0,2.0136279]
[1756726444679,0.05037,108700.0,108670.0,2.3293297]
[1756726444882,0.09837,108700.0,108690.0,0.35136251]
[1756726445184,0.09837,108700.0,108690.0,1.53764251]
[1756726445588,0.02463,108700.0,108690.0,1.53764251]
[1756726445895,0.38095104,108710.0,108690.0,1.48835584]
[1756726446093,0.46498104,108710.0,108700.0,0.35130916]
[1756726446294,0.06815104,108710.0,108700.0,0.70410185]
[1756726446591,0.06815104,108710.0,108700.0,0.67130916]
[1756726446982,0.04478104,108710.0,108700.0,0.67130916]
[1756726447184,0.04678104,108710.0,108700.0,0.67130916]
[1756726447385,0.04678104,108710.0,108700.0,0.70406883]
[1756726447992,0.07215104,108710.0,108700.0,0.70406883]
[1756726448290,0.07215104,108710.0,108700.0,0.65483551]
[1756726449497,0.02415104,108710.0,108700.0,2.13131551]
[1756726449795,0.02415104,108710.0,108700.0,2.18054883]
[1756726450095,0.02415104,108710.0,108700.0,2.18042883]
[1756726450286,0.004,108710.0,108700.0,2.13119551]
[1756726450686,0.08803,108710.0,108700.0,1.77019551]
[1756726450894,0.052,108710.0,108700.0,2.13099551]
[1756726451696,0.08803,108710.0,108700.0,1.26563551]
[1756726451887,0.08803,108710.0,108700.0,1.01563551]
[1756726452196,0.08803,108710.0,108700.0,1.52031551]
[1756726452394,0.08803,108710.0,108700.0,1.48755584]
[1756726452595,0.08803,108710.0,108700.0,0.62207584]
[1756726452896,0.08803,108710.0,108700.0,1.48743584]
[1756726453700,0.08803,108710.0,108700.0,1.48735584]
[1756726455191,0.02863,108710.0,108700.0,1.84815584]
[1756726456091,0.06466,108710.0,108700.0,1.54608]
[1756726456292,0.06466,108710.0,108700.0,1.84815584]
[1756726456798,0.02863,108710.0,108700.0,1.54608]
[1756726457097,0.02863,108710.0,108700.0,1.84815584]
[1756726457301,0.02863,108710.0,108700.0,0.98287584]
[1756726457492,0.08803,108710.0,108700.0,1.84723584]
[1756726458197,0.004,108710.0,108700.0,1.93923234]
[1756726458393,0.004,108710.0,108700.0,2.45373234]
[1756726459102,0.004,108710.0,108700.0,1.58937234]
[1756726459292,0.004,108710.0,108700.0,2.45293234]
[1756726459893,0.004,108710.0,108700.0,2.18843234]
[1756726460200,0.004,108710.0,108700.0,2.09615584]
[1756726460389,0.004,108710.0,108700.0,1.79396]
[1756726460584,0.004,108710.0,108700.0,1.23287584]
[1756726460798,0.004,108710.0,108700.0,2.09603584]
[1756726461502,0.004,108710.0,108700.0,1.84603584]
[1756726462193,0.08716,108710.0,108700.0,1.84599584]
[1756726462498,0.08716,108710.0,108700.0,1.84575584]
[1756726463101,0.0525,108710.0,108700.0,1.84575584]
[1756726463602,0.02759,108710.0,108700.0,1.54368]
[1756726463805,0.02759,108710.0,108700.0,1.84575584]
[1756726464001,0.06225,108710.0,108700.0,1.84575584]
[1756726464203,0.02759,108710.0,108700.0,1.84575584]
[1756726464500,0.02759,108710.0,108700.0,1.87851551]
[1756726466003,0.02759,108710.0,108700.0,1.81780029]
[1756726466597,0.06225,108710.0,108700.0,1.81780029]
[1756726468400,0.004,108710.0,108700.0,1.86703361]
[1756726468604,0.004,108710.0,108700.0,2.07563456]
[1756726469204,0.004,108710.0,108700.0,1.83427394]
[1756726470004,0.46480661,108740.0,108710.0,0.1102697]
[1756726470190,0.46480661,108740.0,108730.0,0.24136062]
[1756726470605,0.46480661,108740.0,108730.0,0.60136062]
[1756726471000,0.46480661,108740.0,108720.0,1.25705553]
[1756726471193,0.46780661,108740.0,108730.0,0.24136062]
[1756726471400,0.47380661,108740.0,108730.0,0.56136062]
[1756726472001,0.47580661,108740.0,108730.0,0.62156189]
[1756726473309,0.47580661,108740.0,108730.0,0.65433742]
[1756726474309,0.47580661,108740.0,108730.0,1.51677742]
[1756726475102,0.41623661,108740.0,108730.0,1.52482871]
[1756726475300,0.41623661,108740.0,108730.0,1.59842017]
[1756726476008,0.47580661,108740.0,108730.0,1.64710347]
[1756726476199,0.47580661,108740.0,108730.0,1.64750347]
[1756726476796,0.44114661,108740.0,108730.0,1.64750347]
[1756726477308,0.44114661,108740.0,108730.0,1.59834017]
[1756726478306,0.05543661,108740.0,108730.0,2.00830347]
[1756726478512,0.011,108740.0,108730.0,1.95914017]
[1756726478705,0.011,108740.0,108730.0,2.24441371]
[1756726478909,0.011,108740.0,108730.0,2.33638511]
[1756726480208,0.011,108740.0,108730.0,1.38205371]
[1756726480498,0.011,108740.0,108730.0,2.24397371]
[1756726482810,0.04566,108740.0,108730.0,0.77125371]
[1756726483014,0.45496,108740.0,108730.0,1.0441527]
[1756726483312,0.70496,108740.0,108730.0,0.9949894]
[1756726484207,0.70496,108740.0,108730.0,0.11446363]
[1756726484406,0.72557396,108740.0,108730.0,0.08164275]
[1756726484608,0.69091396,108740.0,108720.0,0.89446088]
[1756726484808,0.39546,108730.0,108720.0,1.25446088]
[1756726485008,0.44396,108730.0,108720.0,0.39282088]
[1756726485213,0.44396,108730.0,108720.0,1.25422088]
[1756726486002,0.08316,108730.0,108720.0,1.55578277]
[1756726486405,0.02359,108730.0,108720.0,1.60494607]
[1756726486607,0.42707396,108740.0,108720.0,1.60494607]
[1756726486802,0.47557396,108740.0,108730.0,0.30156189]
[1756726487009,0.46457396,108740.0,108730.0,0.37]
[1756726487215,0.46657396,108740.0,108730.0,0.37]
[1756726487718,0.46457396,108740.0,108730.0,0.37]
[1756726488008,0.08316,108730.0,108720.0,0.04082912]
[1756726488214,0.08316,108730.0,108720.0,1.22370912]
[1756726488817,0.08316,108730.0,108720.0,1.24005154]
[1756726489019,0.08316,108730.0,108720.0,1.54161343]
[1756726489411,0.0485,108730.0,108720.0,1.54161343]
[1756726489617,0.42276396,108740.0,108720.0,1.63359263]
[1756726489809,0.47057396,108740.0,108730.0,0.33440831]
[1756726490009,0.46657396,108740.0,108730.0,0.68440831]
[1756726490518,0.46357396,108740.0,108730.0,0.68440831]
[1756726490919,0.46357396,108740.0,108730.0,0.70318684]
[1756726491216,0.46757396,108740.0,108730.0,0.70318684]
[1756726491422,0.43322396,108740.0,108730.0,0.70318684]
[1756726491719,0.02761396,108740.0,108730.0,1.33030372]
[1756726492111,0.02761396,108740.0,108730.0,1.34362967]
[1756726492411,0.02761396,108740.0,108730.0,1.29446637]
[1756726492813,0.02761396,108740.0,108730.0,2.15674637]
[1756726494324,0.02761396,108740.0,108730.0,2.24871777]
[1756726495127,0.02761396,108740.0,108730.0,1.36016817]
[1756726495320,0.02761396,108740.0,108730.0,2.22200817]
[1756726495521,0.007,108740.0,108730.0,2.22200817]
[1756726496823,0.007,108740.0,108730.0,1.36016817]
[1756726497023,0.007,108740.0,108730.0,2.22188817]
[1756726497320,0.03835,108740.0,108730.0,1.86108817]
[1756726497618,0.69296,108740.0,108730.0,1.02095271]
[1756726497821,0.93417546,108740.0,108730.0,1.00452313]
[1756726498017,0.69296,108740.0,108730.0,1.00452313]
[1756726498218,0.69296,108740.0,108730.0,1.00552313]
[1756726498418,0.69296,108740.0,108730.0,1.00553608]
[1756726498722,0.69296,108740.0,108730.0,1.00557608]
[1756726499314,0.93417546,108740.0,108730.0,1.00533608]
[1756726499517,0.68417546,108740.0,108730.0,1.00533608]
[1756726499716,0.44296,108740.0,108730.0,1.00533608]
[1756726500019,0.44396,108740.0,108730.0,1.00433608]
[1756726500220,0.44396,108740.0,108730.0,1.00333608]
[1756726500927,0.44496,108740.0,108730.0,1.00333608]
[1756726501227,0.44496,108740.0,108730.0,0.14173608]
[1756726502025,0.44496,108740.0,108730.0,0.75295154]
[1756726502427,0.44496,108740.0,108730.0,0.78581967]
[1756726503820,0.44496,108740.0,108730.0,0.41581967]
[1756726504016,0.44496,108740.0,108730.0,0.76581967]
[1756726505330,0.44496,108740.0,108730.0,1.62617967]
[1756726505527,0.44496,108740.0,108730.0,1.27617967]
[1756726505727,0.44496,108740.0,108730.0,1.62617967]
[1756726506424,0.44496,108740.0,108730.0,1.27617967]
[1756726507430,0.44496,108740.0,108730.0,1.63617967]
[1756726507925,0.3628,108740.0,108730.0,1.97815107]
[1756726508116,0.002,108740.0,108730.0,2.30608294]
[1756726508323,0.002,108740.0,108730.0,2.25679777]
[1756726509426,0.001,108740.0,108730.0,2.25679777]
[1756726509627,0.001,108740.0,108730.0,2.25779777]
[1756726510225,0.3608,108750.0,108730.0,2.25779777]
[1756726510426,0.3608,108750.0,108740.0,0.290534]
[1756726510624,0.40861,108750.0,108740.0,0.660534]
[1756726510830,0.44296,108750.0,108740.0,0.660534]
[1756726511431,0.45777,108750.0,108740.0,1.520654]
[1756726515232,0.45777,108750.0,108740.0,0.660534]
[1756726515536,0.45777,108750.0,108740.0,1.519894]
[1756726517637,0.45777,108750.0,108740.0,0.660534]
[1756726517846,0.45777,108750.0,108740.0,1.519894]
[1756726518030,0.45777,108750.0,108740.0,1.519574]
[1756726518728,0.45777,108750.0,108740.0,0.660534]
[1756726518924,0.45777,108750.0,108740.0,1.519334]
[1756726519732,0.45777,108750.0,108740.0,1.149334]
[1756726519938,0.45877,108750.0,108740.0,1.479334]
[1756726520239,0.45977,108750.0,108740.0,1.479334]
[1756726521436,0.45977,108750.0,108740.0,0.04931854]
[1756726521739,0.45977,108750.0,108740.0,0.90783854]
[1756726522132,0.45977,108750.0,108740.0,1.459054]
[1756726522740,0.45977,108750.0,108740.0,0.90783854]
[1756726522935,0.45977,108750.0,108740.0,1.459054]
[1756726525640,0.95098546,108750.0,108740.0,0.03288887]
[1756726526130,0.95098546,108750.0,108740.0,0.08220741]
[1756726527241,0.95098546,108750.0,108740.0,0.03288887]
[1756726527439,1.28663546,108750.0,108730.0,0.14176945]
[1756726527640,1.53948546,108740.0,108730.0,0.12299092]
[1756726527844,1.57944908,108740.0,108730.0,0.07367238]
[1756726528044,1.81552908,108740.0,108720.0,0.05732678]
[1756726528342,0.68240546,108730.0,108720.0,0.05732678]
[1756726528545,0.68240546,108730.0,108720.0,0.08111678]
[1756726528750,0.44119,108730.0,108720.0,0.13876678]
[1756726529048,0.44119,108730.0,108720.0,0.73998224]
[1756726529243,0.44119,108730.0,108720.0,0.13876678]
[1756726529446,0.44119,108730.0,108720.0,0.72098224]
[1756726530545,0.44119,108730.0,108720.0,0.72198224]
[1756726531148,0.44219,108730.0,108720.0,0.09044824]
[1756726531340,0.68340546,108730.0,108720.0,0.00900824]
[1756726531546,0.68340546,108730.0,108720.0,0.00800824]
[1756726531746,0.68440546,108730.0,108720.0,0.02379]
[1756726532047,0.68440546,108730.0,108710.0,1.1991867]
[1756726532048,0.03392,108720.0,108710.0,1.1991867]
[1756726532347,0.39472,108720.0,108710.0,1.31797124]
[1756726533446,0.44119,108720.0,108710.0,0.27904124]
[1756726533653,0.68240546,108720.0,108710.0,0.48904124]
[1756726533845,0.44119,108720.0,108710.0,0.49740594]
[1756726534544,0.44119,108720.0,108710.0,0.20740594]
[1756726534753,0.44219,108720.0,108710.0,0.20740594]
[1756726535644,0.68340546,108720.0,108710.0,0.17451594]
[1756726535943,0.68440546,108720.0,108710.0,0.0766474]
[1756726536147,0.68440546,108720.0,108710.0,0.1004374]
[1756726536538,0.68440546,108720.0,108710.0,0.1251974]
[1756726537447,0.44319,108720.0,108710.0,0.65930286]
[1756726537650,0.38603,108720.0,108710.0,0.90930286]
[1756726537848,0.40927,108720.0,108710.0,0.59930286]
[1756726538051,0.40927,108720.0,108710.0,0.93930286]
[1756726538254,0.40927,108720.0,108710.0,0.40740594]
[1756726538450,0.44319,108720.0,108710.0,1.0286214]
[1756726538652,0.44219,108720.0,108710.0,1.0286214]
[1756726538952,0.44119,108720.0,108710.0,1.0286214]
[1756726540150,0.44119,108720.0,108710.0,0.40740594]
[1756726540452,0.44119,108720.0,108710.0,1.0086214]
[1756726542350,0.02030915,108730.0,108720.0,0.03289]
[1756726542557,0.02030915,108730.0,108720.0,2.03986946]
[1756726542959,0.02030915,108730.0,108720.0,2.35135092]
[1756726543149,0.02064512,108740.0,108720.0,2.44333092]
[1756726543457,0.02064512,108740.0,108730.0,0.29403546]
[1756726543658,0.02064512,108740.0,108730.0,0.64403546]
[1756726543854,0.02064512,108740.0,108730.0,0.9665528]
[1756726544053,0.02064512,108740.0,108730.0,1.3273528]
[1756726544959,0.04387512,108740.0,108730.0,0.9675528]
[1756726546658,0.04387512,108740.0,108730.0,0.9685528]
[1756726547854,0.04387512,108740.0,108730.0,1.8252728]
[1756726548051,0.04387512,108740.0,108730.0,2.1860728]
[1756726548358,0.02064512,108740.0,108730.0,2.1860728]
[1756726548558,0.02064512,108740.0,108730.0,1.8252728]
[1756726550656,0.46251512,108740.0,108730.0,0.9685528]
[1756726550853,0.10171512,108740.0,108730.0,1.5743528]
[1756726551054,0.46251512,108740.0,108730.0,1.5743528]
[1756726551258,0.10171512,108740.0,108730.0,1.5743528]
[1756726551858,0.46251512,108740.0,108730.0,1.5743528]
[1756726552260,0.46251512,108740.0,108730.0,0.13733734]
[1756726552451,0.95373058,108740.0,108730.0,0.12633734]
[1756726552656,0.95373058,108740.0,108730.0,0.07351734]
[1756726553164,0.97322596,108740.0,108730.0,0.07351734]
[1756726553553,0.97422596,108740.0,108730.0,0.07351734]
[1756726553760,0.97422596,108740.0,108730.0,0.07251734]
[1756726553965,0.08107,108730.0,108720.0,0.05282]
[1756726554158,0.44187,108730.0,108720.0,0.15282]
[1756726556074,0.44287,108730.0,108720.0,0.15282]
[1756726556675,0.44387,108730.0,108720.0,0.15282]
[1756726558274,0.44287,108730.0,108720.0,0.15282]
[1756726558969,0.44287,108730.0,108720.0,0.40282]
[1756726559276,0.44287,108730.0,108720.0,0.14282]
[1756726559474,0.44187,108730.0,108720.0,0.14282]